bitfinex-derivatives/quotes_ETHF0:USTF0_20260128
["timestamp","ask_amount","ask_price","bid_price","bid_amount"]
[1769628852752,1.59518491,3007.4,3005.1,3.33]
[1769628852953,0.00272369,3008.2,3004.5,0.00363713]
[1769628852954,1.59518491,3006.9,3004.5,0.00363713]
[1769628853153,0.16656,3006.0,3004.5,0.00363713]
[1769628853357,0.16658,3005.5,3004.5,0.00363713]
[1769628853553,0.1666,3005.1,3002.5,11.46260184]
[1769628853854,0.1666,3005.1,3000.3,19.79932218]
[1769628853855,4.92618491,3004.9,3003.0,0.52045737]
[1769628854163,0.16666,3004.2,3003.0,0.51370524]
[1769628854453,0.16661,3005.1,3003.0,0.51370524]
[1769628854753,40.8,3005.8,3003.0,0.51800773]
[1769628855358,40.8,3005.8,3003.8,1.59518491]
[1769628855655,0.0035534,3006.0,3003.8,1.59518491]
[1769628856061,0.0035534,3006.0,3003.6,0.16668]
[1769628856263,42.39518491,3005.9,3003.0,0.68472773]
[1769628856457,42.39518491,3005.9,3003.1,0.16671]
[1769628856651,42.39518491,3005.9,3003.0,0.51800773]
[1769628856857,1.59518491,3005.4,3003.0,0.51800773]
[1769628857057,0.16658,3005.5,3003.0,0.51800773]
[1769628857257,42.39518491,3005.9,3003.0,0.51800773]
[1769628857562,42.39518491,3005.9,3003.2,0.16671]
[1769628858466,1.59518491,3005.4,3003.0,0.51800773]
[1769628858666,0.1666,3005.3,3003.0,0.51800773]
[1769628859063,0.16663,3004.7,3003.0,0.51800773]
[1769628859461,1.59518491,3005.4,3003.0,0.51800773]
[1769628859962,0.16661,3005.0,3003.0,0.51800773]
[1769628860265,0.16657,3005.8,3003.2,1.59518491]
[1769628860460,1.59518491,3005.4,3003.0,0.51800773]
[1769628860662,0.16658,3005.5,3003.2,1.59518491]
[1769628861168,42.39518491,3005.9,3003.3,0.1667]
[1769628861355,42.39518491,3005.9,3003.0,0.51800773]
[1769628861356,1.59518491,3005.4,3003.0,0.51800773]
[1769628861561,0.16659,3005.4,3003.0,0.51800773]
[1769628861756,0.16659,3005.4,3003.0,0.68472773]
[1769628861964,40.8,3005.9,3003.2,1.76189491]
[1769628862160,0.16657,3005.8,3003.2,1.76189491]
[1769628862359,0.16657,3005.7,3003.2,1.76189491]
[1769628864058,0.16659,3005.4,3003.0,0.51800773]
[1769628864261,40.8,3005.9,3003.2,1.59518491]
[1769628864465,40.8,3005.9,3003.0,0.51800773]
[1769628864466,0.0035534,3006.0,3003.7,1.76186491]
[1769628864869,0.16657,3005.7,3003.0,0.51800773]
[1769628865066,1.59518491,3005.5,3003.0,0.51800773]
[1769628865671,0.16658,3005.5,3003.0,0.68472773]
[1769628865872,1.59518491,3005.5,3003.0,0.51800773]
[1769628866178,1.59518491,3005.0,3003.0,0.51800773]
[1769628866875,1.76179491,3005.0,3003.0,0.51800773]
[1769628868283,1.59518491,3005.5,3003.0,0.51800773]
[1769628868481,0.16659,3005.4,3003.0,0.51800773]
[1769628868677,0.16659,3005.4,3003.0,0.68472773]
[1769628868877,1.59518491,3005.0,3003.0,0.51800773]
[1769628869081,0.16662,3004.9,3003.0,0.51800773]
[1769628869385,0.16665,3004.3,3003.0,0.51800773]
[1769628869581,1.59518491,3004.5,3003.0,0.51800773]
[1769628869879,0.16662,3004.8,3003.0,0.51800773]
[1769628870478,1.59518491,3005.0,3003.0,0.51800773]
[1769628870678,1.59518491,3005.5,3003.2,0.16671]
[1769628871184,0.16659,3005.3,3003.2,0.16671]
[1769628871385,0.1666,3005.2,3003.2,0.16671]
[1769628871574,1.59518491,3005.5,3003.3,0.1667]
[1769628871780,0.16657,3005.7,3003.7,1.59518491]
[1769628871981,0.0035534,3006.0,3003.7,1.76186491]
[1769628872182,0.0035534,3006.0,3003.7,1.59518491]
[1769628872487,0.0035534,3006.0,3004.2,0.16665]
[1769628872689,0.0035534,3006.0,3004.5,0.16663]
[1769628872985,1.59518491,3006.5,3003.9,3.332]
[1769628873185,1.59518491,3006.5,3004.3,0.16665]
[1769628873381,0.16652,3006.6,3003.9,3.332]
[1769628873786,0.16980087,3006.6,3004.2,1.59518491]
[1769628874188,0.00328087,3006.6,3004.7,0.16662]
[1769628874388,0.00328087,3006.6,3005.1,0.1666]
[1769628875287,0.16648,3007.4,3004.2,1.59518491]
[1769628875288,40.8,3007.9,3004.2,1.59518491]
[1769628875592,0.86970525,3009.6,3003.9,3.332]
[1769628875593,0.16644,3008.0,3005.7,1.59518491]
[1769628875884,0.16644,3008.0,3005.2,0.1666]
[1769628876079,1.76165491,3007.6,3005.2,0.1666]
[1769628876283,0.16648,3007.4,3005.2,0.00368207]
[1769628876491,1.59788122,3007.6,3005.2,0.00368207]
[1769628877279,1.76435122,3007.6,3005.2,0.00368207]
[1769628877485,0.16648,3007.4,3005.2,0.00368207]
[1769628877985,1.59518491,3007.1,3005.2,0.00368207]
[1769628878992,0.16648,3007.3,3005.2,0.00368207]
[1769628879588,1.59788122,3007.6,3005.2,0.00368207]
[1769628879791,0.00269631,3007.6,3005.3,0.16659]
[1769628880095,0.00269631,3007.6,3005.6,0.16657]
[1769628880392,1.59788122,3007.6,3005.6,0.16657]
[1769628880793,0.00269631,3007.6,3005.7,1.59518491]
[1769628880990,0.00269631,3007.6,3005.8,0.16656]
[1769628881688,0.00269631,3007.6,3005.2,3.50127207]
[1769628881893,0.00269631,3007.6,3005.2,3.33468207]
[1769628882487,0.00269631,3007.6,3005.4,0.16659]
[1769628882689,0.00269631,3007.6,3005.2,0.00368207]
[1769628882881,0.00269631,3007.6,3005.7,0.16657]
[1769628883395,0.00269631,3007.6,3005.8,0.16656]
[1769628883588,0.00269631,3007.6,3005.9,0.16656]
[1769628883993,0.00269631,3007.6,3005.2,0.00368207]
[1769628884894,0.16916631,3007.6,3005.2,0.00368207]
[1769628885095,0.00269631,3007.6,3005.2,0.00368207]
[1769628885294,0.16652,3006.6,3005.2,0.00368207]
[1769628885489,1.59600344,3007.2,3005.2,0.00368207]
[1769628885694,0.16649,3007.3,3005.2,0.00368207]
[1769628886085,0.00269631,3007.6,3005.4,0.16659]
[1769628886392,0.00269631,3007.6,3005.2,0.00368207]
[1769628886393,0.00269631,3007.6,3006.1,0.16655]
[1769628886797,0.00269631,3007.6,3006.3,0.16654]
[1769628887191,0.00269631,3007.6,3005.8,3.331]
[1769628887387,0.00269631,3007.6,3005.7,0.16657]
[1769628889198,0.16916631,3007.6,3005.2,0.00368207]
[1769628891197,0.16916631,3007.6,3005.5,0.16658]
[1769628893293,0.16916631,3007.6,3005.6,0.16658]
[1769628893493,0.00269631,3007.6,3005.2,1.59968551]
[1769628893687,2.0,3008.4,3006.5,0.16652]
[1769628894294,2.0,3008.4,3006.8,0.16651]
[1769628894501,2.0,3008.4,3005.2,0.00368207]
[1769628894502,2.0,3008.4,3005.8,1.59600344]
[1769628894691,2.00237493,3008.4,3006.3,0.16654]
[1769628894892,2.00237493,3008.4,3006.7,0.16651]
[1769628895191,2.00237493,3008.4,3005.9,3.33]
[1769628895394,2.00237493,3008.4,3006.8,0.16651]
[1769628896888,2.00237493,3008.4,3005.9,3.33]
[1769628897094,2.00237493,3008.4,3006.0,3.33]
[1769628897300,2.00237493,3008.4,3006.5,0.16652]
[1769628898000,2.00237493,3008.4,3006.6,0.16652]
[1769628898301,2.00237493,3008.4,3006.7,0.16651]
[1769628900402,2.00237493,3008.4,3007.4,0.16647]
[1769628900601,0.16631,3010.4,3007.7,0.16646]
[1769628900901,40.8,3011.0,3007.7,0.16646]
[1769628901101,0.16636,3009.6,3007.1,0.16649]
[1769628901306,0.16632,3010.3,3007.5,0.16647]
[1769628901510,0.16632,3010.2,3007.6,0.16646]
[1769628901812,0.16632,3010.2,3007.5,0.00242524]
[1769628902108,0.16632,3010.2,3007.9,0.16645]
[1769628902508,0.002554,3010.3,3007.5,0.00242524]
[1769628902707,0.002554,3010.3,3008.5,0.16641]
[1769628902906,0.002554,3010.3,3008.8,0.1664]
[1769628903098,0.002554,3010.3,3007.6,0.16647]
[1769628903305,0.002554,3010.3,3007.7,5.281]
[1769628903698,0.002554,3010.3,3009.0,0.16639]
[1769628904109,0.002554,3010.3,3008.2,0.16643]
[1769628904509,0.002554,3010.3,3007.7,1.952]
[1769628904510,0.002554,3010.3,3008.4,0.16642]
[1769628905111,0.002554,3010.3,3008.5,0.16641]
[1769628905712,0.002554,3010.3,3007.7,1.952]
[1769628905713,0.002554,3010.3,3007.7,0.16645]
[1769628905908,0.002554,3010.3,3007.8,3.328]
[1769628906610,0.002554,3010.3,3007.9,3.328]
[1769628907003,0.002554,3010.3,3008.4,0.16642]
[1769628907912,0.002554,3010.3,3007.9,3.328]
[1769628909006,0.002554,3010.3,3008.9,0.16639]
[1769628910010,0.002554,3010.3,3008.1,1.59600344]
[1769628910209,0.002554,3010.3,3008.8,0.1664]
[1769628911316,0.002554,3010.3,3008.1,0.16643]
[1769628912017,0.002554,3010.3,3008.2,3.327]
[1769628912316,0.002554,3010.3,3008.1,0.16643]
[1769628912711,0.002554,3010.3,3007.5,0.00242524]
[1769628913015,0.16632,3010.2,3007.8,0.16645]
[1769628913209,0.002554,3010.3,3008.1,0.16643]
[1769628913616,0.002554,3010.3,3008.2,0.16643]
[1769628914306,0.002554,3010.3,3007.5,0.00242524]
[1769628914511,0.002554,3010.3,3008.6,0.16641]
[1769628916514,0.002554,3010.3,3008.7,0.1664]
[1769628916820,0.002554,3010.3,3007.5,0.00242524]
[1769628917006,0.002554,3010.3,3008.4,0.16642]
[1769628918512,0.002554,3010.3,3007.5,0.00242524]
[1769628918712,0.002554,3010.3,3008.1,3.327]
[1769628919411,0.16633,3010.1,3007.7,0.16646]
[1769628919711,0.16633,3010.1,3007.7,3.49346]
[1769628919923,0.16633,3010.1,3007.8,0.16645]
[1769628920523,0.16633,3010.1,3007.7,3.327]
[1769628920919,0.002554,3010.3,3008.3,0.16642]
[1769628921820,0.002554,3010.3,3007.8,3.327]
[1769628922514,0.002554,3010.3,3009.1,0.16638]
[1769628922714,0.002554,3010.3,3007.8,3.327]
[1769628923021,0.002554,3010.3,3008.8,0.1664]
[1769628923322,0.002554,3010.3,3008.5,3.327]
[1769628923717,0.002554,3010.3,3008.9,0.16639]
[1769628924212,0.002554,3010.3,3008.5,3.327]
[1769628924213,0.002554,3010.3,3008.3,0.16643]
[1769628924413,0.002554,3010.3,3007.7,0.16646]
[1769628924617,0.16632,3010.2,3007.9,0.16645]
[1769628925018,0.002554,3010.3,3008.2,0.16643]
[1769628927415,0.168874,3010.3,3008.2,0.16643]
[1769628927616,0.16632,3010.2,3007.8,3.327]
[1769628928119,0.16632,3010.2,3007.8,3.49345]
[1769628929222,0.002554,3010.3,3007.8,3.49345]
[1769628929223,0.16633,3010.1,3007.8,3.49345]
[1769628929714,0.16633,3010.0,3007.8,0.16645]
[1769628930320,0.16633,3010.0,3007.5,3.32942524]
[1769628930321,0.16635,3009.7,3007.5,0.00242524]
[1769628930518,0.16632,3010.2,3007.5,0.00242524]
[1769628930816,0.002554,3010.3,3007.9,1.59600344]
[1769628931721,0.002554,3010.3,3009.2,0.16637]
[1769628931927,0.16626,3011.4,3009.2,0.16637]
[1769628932826,0.16976004,3011.4,3009.2,0.16637]
[1769628933129,0.00350004,3011.4,3009.1,1.59600344]
[1769628933326,0.00350004,3011.4,3009.9,0.16634]
[1769628933522,0.00350004,3011.4,3009.9,0.16934001]
[1769628933724,0.00350004,3011.4,3009.9,0.00300001]
[1769628935022,0.16627,3011.1,3009.0,9.81720533]
[1769628935231,0.00350004,3011.4,3008.7,1.59600344]
[1769628935530,0.00350004,3011.4,3009.2,0.16637]
[1769628935932,0.00350004,3011.4,3009.2,0.16997982]
[1769628936232,0.00350004,3011.4,3009.2,0.00360982]
[1769628937332,0.16976004,3011.4,3009.2,0.00360982]
[1769628938137,0.00350004,3011.4,3009.2,0.16997982]
[1769628938437,0.00350004,3011.4,3009.2,0.00360982]
[1769628938637,0.00350004,3011.4,3009.8,0.16634]
[1769628938837,0.00350004,3011.4,3009.2,0.00360982]
[1769628939650,0.16626,3011.3,3009.2,0.00360982]
[1769628940045,0.00350004,3011.4,3009.3,0.16637]
[1769628941140,1.59950348,3011.4,3009.2,0.00360982]
[1769628941644,0.16628,3010.9,3009.2,0.00360982]
[1769628941849,0.00350004,3011.4,3009.2,0.00360982]
[1769628942549,0.16627,3011.2,3009.2,0.00360982]
[1769628944843,0.16627,3011.1,3009.2,0.00360982]
[1769628946645,0.00350004,3011.4,3009.2,0.00360982]
[1769628947054,0.16976004,3011.4,3009.2,0.00360982]
[1769628947948,1.59583312,3011.4,3009.2,0.00360982]
[1769628948250,0.16628,3011.0,3009.2,0.00360982]
[1769628948552,0.00350004,3011.4,3009.5,1.59233308]
[1769628949047,0.00350004,3011.4,3010.0,1.75866308]
[1769628949250,0.00350004,3011.4,3010.1,0.16633]
[1769628950851,0.00350004,3011.4,3009.5,1.59233308]
[1769628951049,0.00350004,3011.4,3009.6,0.16635]
[1769628952053,0.00350004,3011.4,3009.2,0.00360982]
[1769628952252,0.00350004,3011.4,3009.5,1.59233308]
[1769628953051,0.00350004,3011.4,3009.5,1.75869308]
[1769628953754,0.00350004,3011.4,3009.6,0.16635]
[1769628955250,0.00350004,3011.4,3009.2,0.00360982]
[1769628955251,0.00350004,3011.4,3010.0,1.59233308]
[1769628955554,0.00350004,3011.4,3010.1,0.16633]
[1769628955754,0.00350004,3011.4,3010.2,0.16632]
[1769628956255,0.00350004,3011.4,3010.3,0.16631]
[1769628956442,2.0,3012.4,3010.4,0.16631]
[1769628956648,2.0,3012.4,3010.5,1.59233308]
[1769628956848,2.0,3012.4,3010.4,0.16631]
[1769628957054,2.0,3012.4,3010.6,0.16629]
[1769628957250,2.0,3012.4,3011.0,1.59233308]
[1769628957452,0.1661,3014.2,3011.6,1.59233308]
[1769628957852,1.59233308,3013.6,3011.1,1.59233308]
[1769628958244,1.59233308,3013.6,3010.9,0.16628]
[1769628958450,1.59233308,3013.1,3010.9,0.16628]
[1769628958756,0.16617,3013.0,3010.9,0.00300734]
[1769628958952,0.16618,3012.8,3010.9,0.00300734]
[1769628959349,0.16618,3012.7,3010.9,0.00300734]
[1769628960448,0.16617,3013.0,3010.9,0.00300734]
[1769628960853,0.16617,3012.9,3010.9,0.00300734]
[1769628961050,4.92614346,3013.1,3010.9,0.00300734]
[1769628961264,0.1662,3012.5,3010.9,0.00300734]
[1769628961965,0.1662,3012.4,3010.9,0.00300734]
[1769628962157,0.16624,3011.8,3009.6,3.325]
[1769628962355,0.16621,3012.3,3009.7,1.59233308]
[1769628962660,40.96617,3013.0,3010.4,0.16631]
[1769628962855,0.16617,3013.0,3010.5,0.1663]
[1769628963062,0.00381038,3013.1,3011.2,1.59233308]
[1769628963260,0.00381038,3013.1,3011.2,0.00346383]
[1769628963563,0.16998038,3013.1,3011.2,0.00346383]
[1769628964352,1.59233308,3012.7,3011.2,0.00346383]
[1769628964561,0.1662,3012.4,3010.2,0.16632]
[1769628964756,1.59233308,3012.2,3009.5,0.16636]
[1769628964963,1.59233308,3011.7,3009.5,0.16636]
[1769628965263,0.16619,3012.6,3010.0,0.16633]
[1769628965458,0.16619,3012.6,3010.0,0.16924044]
[1769628965658,0.1662,3012.5,3010.0,0.16924044]
[1769628965866,0.1662,3012.4,3010.0,0.16924044]
[1769628966467,1.59233308,3012.3,3010.0,0.16924044]
[1769628966667,1.59233308,3012.3,3010.0,0.00291044]
[1769628966867,1.59233308,3011.8,3010.0,0.00291044]
[1769628968262,0.00381038,3013.1,3010.0,0.00291044]
[1769628968458,0.16617,3013.0,3010.7,1.59233308]
[1769628968655,0.16617,3013.0,3010.7,1.75862308]
[1769628969058,0.16617,3013.0,3010.8,0.16629]
[1769628969270,0.00381038,3013.1,3010.9,0.16628]
[1769628969460,0.00381038,3013.1,3010.5,5.275]
[1769628969461,0.16617,3013.0,3010.5,5.275]
[1769628969661,0.16618,3012.7,3010.3,0.16631]
[1769628970064,0.16618,3012.7,3010.4,0.16631]
[1769628970368,0.1662,3012.5,3010.2,1.59233308]
[1769628970668,1.75853308,3012.5,3010.0,0.00291044]
[1769628970864,1.75853308,3012.5,3010.0,0.16924044]
[1769628971168,0.1662,3012.5,3010.3,0.16631]
[1769628971564,0.00381038,3013.1,3010.4,0.16631]
[1769628971765,0.16617,3013.0,3010.5,0.1663]
[1769628972173,0.16617,3012.9,3010.5,0.1663]
[1769628972666,0.16617,3012.9,3010.7,1.59233308]
[1769628972969,0.00381038,3013.1,3011.2,1.59233308]
[1769628974069,0.00381038,3013.1,3011.1,0.16627]
[1769628974260,0.16619,3012.6,3010.4,0.16631]
[1769628975263,1.59233308,3013.0,3010.2,1.59233308]
[1769628975467,0.00381038,3013.1,3010.7,1.75862308]
[1769628975669,0.00381038,3013.1,3010.8,0.16629]
[1769628976373,0.16617,3013.0,3010.9,0.16628]
[1769628977372,0.00381038,3013.1,3011.0,0.16628]
[1769628977569,0.00381038,3013.1,3011.1,0.16627]
[1769628979072,0.16997038,3013.1,3011.1,0.16627]
[1769628979274,0.16617,3013.0,3010.5,0.1663]
[1769628979576,0.16617,3012.9,3010.5,0.1663]
[1769628980376,0.16618,3012.8,3010.5,0.1663]
[1769628981176,0.00381038,3013.1,3010.8,0.16628]
[1769628981366,0.00381038,3013.1,3011.2,1.75859308]
[1769628981872,0.00381038,3013.1,3011.7,1.75857308]
[1769628982061,0.00381038,3013.1,3011.2,1.59233308]
[1769628982465,0.00381038,3013.1,3011.2,1.75859308]
[1769628982873,0.00381038,3013.1,3011.3,0.16626]
[1769628984474,0.00381038,3013.1,3011.4,0.16625]
[1769628984873,0.00381038,3013.1,3011.5,0.16625]
[1769628985070,0.00381038,3013.1,3011.8,0.16623]
[1769628985267,0.00381038,3013.1,3011.3,1.59233308]
[1769628985467,0.16997038,3013.1,3010.7,9.81720533]
[1769628985668,0.16618,3012.7,3010.7,9.81720533]
[1769628985868,0.16621,3012.3,3010.5,3.324]
[1769628986067,0.16621,3012.2,3010.5,3.324]
[1769628986470,0.16618,3012.9,3010.5,3.324]
[1769628986673,0.16618,3012.8,3010.5,3.324]
[1769628986869,40.96618,3012.8,3010.5,3.324]
[1769628987068,40.96618,3012.8,3010.6,1.59233308]
[1769628987774,0.16618,3012.8,3010.6,1.59233308]
[1769628988175,40.80381038,3013.1,3010.8,0.16628]
[1769628988477,0.00381038,3013.1,3011.1,1.59233308]
[1769628988973,0.00381038,3013.1,3011.4,0.16625]
[1769628989176,0.00381038,3013.1,3010.5,4.91633308]
[1769628989374,0.00381038,3013.1,3010.8,0.16628]
[1769628989871,0.00381038,3013.1,3010.5,1.949]
[1769628990072,1.59233308,3012.7,3010.3,9.81720533]
[1769628990277,0.1662,3012.5,3010.3,9.81720533]
[1769628990478,0.1662,3012.5,3010.5,1.59233308]
[1769628990675,0.16997038,3013.1,3010.5,1.59233308]
[1769628990876,0.16617,3013.0,3010.5,1.59233308]
[1769628991177,0.16617,3013.0,3010.5,1.75863308]
[1769628992571,0.16617,3013.0,3010.5,1.59233308]
[1769628992774,0.00381038,3013.1,3011.1,0.16627]
[1769628993979,0.00381038,3013.1,3011.2,0.16627]
[1769628994179,0.00381038,3013.1,3011.5,1.59233308]
[1769628995679,0.00381038,3013.1,3011.3,0.16626]
[1769628996878,0.00381038,3013.1,3011.1,1.949]
[1769628997078,0.00381038,3013.1,3010.8,3.324]
[1769628997079,0.16618,3012.8,3010.7,0.16629]
[1769628997987,0.00381038,3013.1,3011.0,1.59233308]
[1769628998181,0.00381038,3013.1,3011.1,0.16627]
[1769628998381,0.00381038,3013.1,3011.2,0.16627]
[1769629000185,0.00381038,3013.1,3011.5,1.75858308]
[1769629001588,0.00381038,3013.1,3011.0,1.75861308]
[1769629002585,0.00381038,3013.1,3010.6,3.324]
[1769629002785,0.00381038,3013.1,3010.0,21.28271761]
[1769629002786,1.75855308,3012.1,3010.0,21.28271761]
[1769629003192,0.16622,3012.1,3010.0,21.28271761]
[1769629004093,0.16622,3012.1,3010.0,0.16924044]
[1769629005294,40.8,3012.6,3010.1,0.16632]
[1769629005589,0.16618,3012.7,3010.1,0.16632]
[1769629005790,0.16618,3012.7,3010.5,0.1663]
[1769629005990,0.16618,3012.7,3010.6,0.1663]
[1769629007394,0.16997038,3013.1,3010.8,0.16629]
[1769629007585,0.00381038,3013.1,3011.2,0.16626]
[1769629008395,0.00381038,3013.1,3011.6,0.16624]
[1769629008795,0.00381038,3013.1,3011.7,0.16624]
[1769629008995,0.00381038,3013.1,3011.1,0.16627]
[1769629009392,0.00381038,3013.1,3011.1,2.11527]
[1769629009792,0.16618,3012.7,3010.2,11.46260184]
[1769629009995,0.16621,3012.3,3010.2,11.46260184]
[1769629010293,0.16621,3012.3,3010.0,9.98644577]
[1769629010498,0.16621,3012.3,3010.0,9.82011577]
[1769629010894,40.96617,3013.0,3010.1,0.16632]
[1769629011101,40.8,3013.0,3010.1,0.16632]
[1769629011397,0.16997038,3013.1,3010.5,0.1663]
[1769629011594,0.16617,3012.9,3010.5,0.1663]
[1769629011791,0.16618,3012.8,3010.5,0.1663]
[1769629012297,0.16618,3012.7,3010.4,1.949]
[1769629012596,0.16623,3011.9,3010.0,0.00291044]
[1769629012795,0.1662,3012.5,3010.0,0.00291044]
[1769629013095,0.1662,3012.4,3010.0,0.00291044]
[1769629014694,0.00381038,3013.1,3010.0,0.00291044]
[1769629014895,0.1662,3012.4,3010.0,0.00291044]
[1769629015199,0.16622,3012.2,3010.0,0.00291044]
[1769629018097,40.8,3013.0,3010.2,0.16632]
[1769629018303,0.16619,3012.6,3010.2,0.16632]
[1769629019206,0.1662,3012.4,3010.2,0.16632]
[1769629019399,0.16621,3012.3,3010.0,0.00291044]
[1769629021205,3.33,3012.9,3010.0,0.00291044]
[1769629021405,0.1662,3012.4,3010.0,0.00291044]
[1769629022105,0.1662,3012.4,3010.1,0.16632]
[1769629022505,0.16621,3012.3,3010.1,0.16632]
[1769629022709,0.16624,3011.7,3010.0,0.00291044]
[1769629023103,3.33,3011.9,3008.7,0.1664]
[1769629023302,0.16627,3011.2,3008.8,11.62900184]
[1769629023502,0.16623,3011.8,3009.2,0.16638]
[1769629023698,0.16624,3011.7,3009.2,0.16638]
[1769629023902,40.8,3011.6,3009.2,0.16638]
[1769629024107,0.16627,3011.1,3009.2,0.00267725]
[1769629024511,40.8,3011.6,3009.2,0.00267725]
[1769629025106,0.16624,3011.7,3009.2,0.16904725]
[1769629025308,3.33381038,3013.1,3009.2,0.16904725]
[1769629025309,3.33381038,3013.1,3009.4,1.59111258]
[1769629025607,3.33381038,3013.1,3010.0,0.16633]
[1769629025608,0.1662,3012.4,3010.0,0.16633]
[1769629025810,0.16621,3012.2,3010.0,0.16633]
[1769629026014,3.33,3012.9,3009.4,0.16637]
[1769629026212,40.8,3013.0,3009.4,0.16637]
[1769629026213,3.33,3012.6,3009.4,0.16637]
[1769629026418,0.16625,3011.6,3009.4,0.16637]
[1769629026613,3.33,3012.6,3009.5,0.16636]
[1769629026814,0.16623,3011.8,3009.5,0.16636]
[1769629027021,0.16624,3011.7,3009.5,0.16636]
[1769629027313,40.8,3013.0,3009.2,1.95267725]
[1769629027314,0.16626,3011.4,3009.2,1.95267725]
[1769629027616,0.16622,3012.0,3009.4,0.16636]
[1769629027812,0.16623,3011.9,3009.4,0.16636]
[1769629028012,3.33,3012.7,3009.4,0.16636]
[1769629028212,0.16622,3012.0,3009.7,0.16635]
[1769629028409,0.16622,3012.0,3009.2,1.95267725]
[1769629028410,3.33,3012.9,3009.4,1.59111258]
[1769629028603,0.1662,3012.4,3009.4,1.59111258]
[1769629028811,0.1662,3012.4,3010.0,1.59111258]
[1769629029321,0.1662,3012.4,3010.3,0.16631]
[1769629030616,3.33381038,3013.1,3010.3,0.16631]
[1769629030820,0.16618,3012.9,3010.4,0.1663]
[1769629031015,0.00381038,3013.1,3010.4,0.1663]
[1769629031510,0.16619,3012.6,3010.4,0.1663]
[1769629031918,3.33,3012.7,3009.7,0.16635]
[1769629032112,0.16622,3012.1,3009.7,0.16635]
[1769629032309,0.16622,3012.1,3009.9,0.16633]
[1769629032508,0.16622,3012.1,3010.0,0.16633]
[1769629032714,0.00381038,3013.1,3010.1,0.16632]
[1769629032916,0.16621,3012.3,3010.1,0.16632]
[1769629033216,0.16622,3012.1,3010.1,0.16632]
[1769629033616,0.16618,3012.7,3010.1,0.16632]
[1769629033917,0.16618,3012.7,3010.6,0.1663]
[1769629034221,0.1662,3012.5,3010.0,0.16633]
[1769629034422,0.00381038,3013.1,3010.0,0.16633]
[1769629034721,0.1662,3012.5,3010.1,0.16632]
[1769629035019,0.1662,3012.5,3009.8,1.95]
[1769629035524,0.1662,3012.5,3010.4,0.16631]
[1769629036631,0.1662,3012.4,3009.8,1.95]
[1769629036819,0.1662,3012.5,3010.1,0.16633]
[1769629037523,0.1662,3012.4,3010.1,0.16633]
[1769629038026,0.16621,3012.3,3010.1,0.16633]
[1769629038323,0.16621,3012.2,3010.1,0.16633]
[1769629038525,44.13381038,3013.1,3009.4,0.16636]
[1769629038720,0.16625,3011.5,3009.3,9.81720533]
[1769629039117,0.16625,3011.5,3009.2,0.00267725]
[1769629039724,0.16626,3011.4,3009.2,0.00267725]
[1769629040022,0.16626,3011.4,3009.2,0.16904725]
[1769629040225,0.16623,3011.9,3009.7,0.16635]
[1769629040519,0.1662,3012.5,3010.0,0.16633]
[1769629040726,40.80381038,3013.1,3010.0,0.16633]
[1769629041024,0.1662,3012.5,3010.1,0.16632]
[1769629041223,0.1662,3012.4,3010.1,0.16632]
[1769629041422,0.1662,3012.4,3010.2,0.16632]
[1769629042214,0.16617,3013.0,3010.6,0.16629]
[1769629042818,0.16617,3012.9,3010.6,0.16629]
[1769629043328,0.16618,3012.7,3010.6,0.16629]
[1769629043617,0.1662,3012.5,3010.2,0.16632]
[1769629043819,0.00381038,3013.1,3010.4,0.16631]
[1769629044024,0.16997038,3013.1,3010.5,0.1663]
[1769629044423,0.16997038,3013.1,3010.2,1.59111258]
[1769629044625,0.16997038,3013.1,3010.8,0.16629]
[1769629045523,0.16997038,3013.1,3010.7,1.95]
[1769629045720,0.00381038,3013.1,3011.3,0.16626]
[1769629045922,0.00381038,3013.1,3010.8,4.91611258]
[1769629046235,0.16617,3012.9,3010.6,0.16629]
[1769629047122,0.16619,3012.6,3010.1,0.16632]
[1769629047331,0.16619,3012.6,3010.1,1.95]
[1769629047526,0.16619,3012.6,3010.4,0.16631]
[1769629047726,0.00381038,3013.1,3010.8,1.59111258]
[1769629048224,0.00381038,3013.1,3011.4,1.59111258]
[1769629048523,0.00381038,3013.1,3011.5,0.16625]
[1769629049927,0.00381038,3013.1,3011.4,0.00380041]
[1769629050920,0.1662,3012.4,3010.3,9.98351533]
[1769629051122,0.1662,3012.4,3010.3,0.16631]
[1769629052020,0.1662,3012.4,3010.3,0.17032903]
[1769629053423,0.16622,3012.1,3010.3,0.00401903]
[1769629054335,3.33,3012.9,3010.3,0.00401903]
[1769629054534,0.16622,3012.2,3010.3,0.00401903]
[1769629054830,3.33,3012.9,3010.3,0.00401903]
[1769629055031,0.16624,3011.7,3010.3,0.00401903]
[1769629055832,0.1662,3012.4,3010.3,0.00401903]
[1769629056625,0.1662,3012.4,3010.3,0.17032903]
[1769629057227,0.1662,3012.4,3010.4,0.16631]
[1769629057827,0.16621,3012.3,3010.3,0.00401903]
[1769629059028,40.8,3013.0,3010.3,0.00401903]
[1769629059229,0.16622,3012.0,3010.3,0.00401903]
[1769629059427,0.16627,3011.3,3009.0,11.46260184]
[1769629059628,0.16627,3011.3,3008.6,0.16641]
[1769629059831,0.16628,3011.0,3008.6,0.16641]
[1769629060322,0.16628,3011.0,3008.6,0.16916726]
[1769629060521,0.16629,3010.7,3008.6,0.00275726]
[1769629060730,0.1663,3010.6,3008.6,0.00275726]
[1769629061537,0.16632,3010.2,3008.6,0.00275726]
[1769629062738,0.16634,3009.9,3008.6,0.00275726]
[1769629064031,40.8,3010.6,3008.6,0.00275726]
[1769629064734,0.17032122,3010.7,3008.6,0.00275726]
[1769629066931,0.16631,3010.5,3008.6,0.00275726]
[1769629069037,0.00402122,3010.7,3008.9,1.59273385]
[1769629070431,0.00402122,3010.7,3008.7,0.1664]
[1769629071640,0.00402122,3010.7,3008.6,0.00275726]
[1769629071942,0.16633,3010.0,3008.6,0.00275726]
[1769629074942,1.59273385,3010.3,3008.6,0.00275726]
[1769629075137,0.16634,3009.8,3008.6,0.00275726]
[1769629075740,0.16636,3009.5,3008.4,0.99279334]
[1769629075932,1.59273385,3009.8,3006.9,0.1665]